bitfinex/quotes_ETHUSD_20220202
["timestamp","ask_amount","ask_price","bid_price","bid_amount"]
[1643784725308,0.33459309,2750.4,2749.3,1.43309]
[1643784725909,0.75104681,2750.0,2749.5,0.31780798]
[1643784726111,0.3,2750.4,2749.5,0.31780798]
[1643784726315,0.51613249,2750.7,2749.5,0.31780798]
[1643784726515,1.53626665,2750.6,2749.6,0.1817]
[1643784726716,1.83626665,2750.6,2749.6,0.1817]
[1643784726915,0.33371346,2750.6,2749.6,0.1817]
[1643784727115,0.9096296,2750.4,2749.9,0.80258898]
[1643784727464,0.9096296,2750.4,2749.6,0.1817]
[1643784727465,1.2096296,2750.4,2749.7,1.2199]
[1643784728755,1.2096296,2750.4,2749.7,1.22218089]
[1643784729558,1.2096296,2750.4,2749.7,1.91984243]
[1643784731269,0.1817,2750.8,2750.0,0.44787295]
[1643784731452,0.1817,2750.8,2750.1,0.524]
[1643784731649,4.907788,2751.5,2750.1,0.524]
[1643784731650,0.1817,2751.3,2750.1,0.524]
[1643784731848,1.53600135,2751.2,2750.1,1.7425]
[1643784732053,1.71770135,2751.1,2750.1,1.9242]
[1643784732251,5.58465565,2751.5,2750.1,1.9242]
[1643784732252,0.72081664,2750.9,2750.1,1.9242]
[1643784732453,1.53600135,2750.8,2750.1,2.9242]
[1643784732660,1.53600135,2750.8,2750.1,1.9242]
[1643784733451,1.53600135,2750.8,2750.4,0.43511733]
[1643784733853,1.53600135,2750.8,2750.2,0.74511878]
[1643784734063,1.53600135,2750.8,2750.1,1.9242]
[1643784734254,1.83600135,2750.8,2750.1,1.9242]
[1643784734454,1.53600135,2750.7,2750.1,1.9242]
[1643784736686,1.53600135,2750.7,2750.1,1.2185]
[1643784737290,0.8169869,2750.4,2750.0,0.1817]
[1643784737490,1.54625313,2750.3,2749.9,0.00227372]
[1643784737693,1.53600135,2750.2,2749.9,0.00227372]
[1643784738091,1.83600135,2750.2,2749.9,0.00227372]
[1643784738291,1.53600135,2750.1,2749.9,0.00227372]
[1643784738811,1.53600135,2750.1,2749.6,0.73195156]
[1643784739917,0.1817,2750.6,2749.6,0.73195156]
[1643784740120,1.53618439,2750.5,2749.7,0.3]
[1643784740318,1.53618439,2750.5,2749.8,0.524]
[1643784740523,1.53618439,2750.4,2749.9,0.524]
[1643784740719,1.53618439,2750.4,2750.0,0.524]
[1643784741216,0.84062427,2750.6,2750.0,0.524]
[1643784741417,1.5361451,2750.5,2750.0,0.524]
[1643784741619,1.53469668,2750.5,2750.1,0.89987517]
[1643784741819,1.53469668,2750.5,2750.0,0.524]
[1643784742218,1.83469668,2750.5,2750.0,0.524]
[1643784742479,0.3,2750.5,2750.0,0.524]
[1643784742665,0.84062427,2750.6,2750.0,0.94147176]
[1643784742666,1.14062427,2750.6,2750.0,0.94147176]
[1643784742869,1.14062427,2750.6,2750.0,1.87140687]
[1643784743566,0.3,2750.6,2750.0,1.87140687]
[1643784743773,0.4817,2750.9,2750.0,1.87140687]
[1643784743973,0.21755506,2750.9,2750.0,1.87140687]
[1643784744174,0.1817,2750.9,2750.0,1.87140687]
[1643784744375,0.3,2750.9,2750.1,0.90886]
[1643784744574,0.3,2751.0,2750.5,0.36234574]
[1643784744777,0.3,2751.0,2750.2,0.524]
[1643784744778,0.82773188,2751.0,2750.2,0.524]
[1643784744973,1.09386675,2751.0,2750.2,0.524]
[1643784745173,0.1817,2750.9,2750.2,0.524]
[1643784745784,0.84733432,2750.5,2749.9,1.1445]
[1643784745977,1.14733432,2750.5,2749.9,1.1445]
[1643784747012,1.09733432,2750.5,2749.9,1.1445]
[1643784747413,1.43338423,2750.5,2749.9,1.1445]
[1643784747615,0.1817,2750.4,2749.9,1.1445]
[1643784748815,0.1817,2750.4,2750.1,0.00195869]
[1643784752462,0.1817,2750.4,2750.1,0.00056663]
[1643784753263,1.61508423,2750.5,2750.1,0.00056663]
[1643784753731,1.61508423,2750.5,2749.9,1.14645272]
[1643784755129,0.46774991,2750.5,2749.9,1.14645272]
[1643784755325,0.25,2750.5,2749.9,1.14645272]
[1643784755525,0.3,2750.7,2750.0,0.524]
[1643784755726,0.03042014,2750.7,2750.0,0.524]
[1643784755927,0.51645943,2751.0,2750.0,0.524]
[1643784756229,0.86209959,2750.7,2750.1,0.93768141]
[1643784756627,0.33145139,2750.7,2750.1,0.93768141]
[1643784756830,0.4817,2751.0,2750.1,0.93768141]
[1643784756831,0.1817,2751.2,2750.1,1.11938141]
[1643784757027,2.2429049,2751.2,2750.1,1.11938141]
[1643784757232,2.91977255,2751.2,2750.1,0.1817]
[1643784757462,0.68914028,2750.9,2750.0,0.1817]
[1643784757665,0.01227263,2750.9,2750.0,0.35895907]
[1643784757866,0.89609626,2751.0,2750.1,0.1817]
[1643784757867,0.03752861,2751.0,2750.1,0.1817]
[1643784758067,0.1817,2751.1,2749.9,1.14645272]
[1643784758068,1.15856765,2751.1,2749.9,1.14645272]
[1643784758269,0.7222972,2750.7,2750.1,0.88401632]
[1643784758666,1.0222972,2750.7,2750.1,0.88401632]
[1643784758870,1.05534779,2750.7,2750.0,0.1817]
[1643784761315,0.33305059,2750.7,2750.0,0.1817]
[1643784761715,1.53612069,2750.6,2750.0,0.1817]
[1643784761915,1.53612069,2750.6,2749.9,2.02851501]
[1643784762115,1.83612069,2750.6,2749.9,1.84681501]
[1643784762316,0.92062193,2750.4,2749.9,1.84681501]
[1643784762516,1.53612069,2750.3,2749.9,1.84681501]
[1643784763717,1.53612069,2750.3,2749.9,1.1445]
[1643784765559,1.53612069,2750.3,2750.1,0.85801324]
[1643784766767,1.53612069,2750.3,2750.0,0.33101648]
[1643784767865,0.94087914,2750.7,2750.0,0.33101648]
[1643784767866,1.24087914,2750.7,2750.1,0.86151604]
[1643784768068,1.53606244,2750.6,2750.1,0.86151604]
[1643784768267,1.83606244,2750.6,2750.1,0.86151604]
[1643784768465,1.53606244,2750.5,2750.1,0.86151604]
[1643784770808,1.53606244,2750.5,2750.1,1.16151604]
[1643784771009,1.53606244,2750.5,2750.0,1.33101648]
[1643784771010,1.53606244,2750.5,2750.0,0.33101648]
[1643784771817,1.53606244,2750.5,2749.9,2.35346]
[1643784772316,1.53606244,2750.5,2749.9,1.1445]
[1643784773556,1.53606244,2750.5,2749.9,1.56417648]
[1643784774369,1.5347238,2750.5,2749.9,1.56417648]
[1643784775367,1.5347238,2750.5,2749.9,1.1445]
[1643784776410,1.5347238,2750.5,2750.0,0.42179549]
[1643784777014,1.5347238,2750.5,2750.1,0.87165075]
[1643784778213,1.5347238,2750.5,2750.0,0.90894]
[1643784778411,1.5347238,2750.5,2749.9,1.1445]
[1643784778613,1.5347238,2750.5,2749.6,1.1817]
[1643784778614,2.0612049,2750.4,2749.6,1.99969]
[1643784778820,2.0612049,2750.4,2749.4,3.6802]
[1643784778821,0.01208092,2750.2,2749.4,3.6802]
[1643784779017,0.1817,2750.1,2749.4,3.4302]
[1643784779213,0.19320185,2750.1,2749.4,3.4302]
[1643784779616,0.91061684,2749.9,2749.4,3.4302]
[1643784779813,1.21061684,2749.9,2749.4,3.4302]
[1643784780063,1.24233196,2749.9,2749.4,3.4302]
[1643784780258,1.24233196,2749.9,2749.3,1.1701]
[1643784780462,1.25437196,2749.9,2749.3,1.1701]
[1643784780659,2.16370316,2749.9,2749.3,1.1701]
[1643784781158,2.15166316,2749.9,2749.3,1.1701]
[1643784781367,2.1596161,2749.9,2749.3,1.1701]
[1643784782965,2.07944021,2749.8,2749.3,1.1701]
[1643784783363,2.1596161,2749.9,2749.3,1.1701]
[1643784784414,2.1596161,2749.9,2749.3,1.61801002]
[1643784785014,1.2502849,2749.9,2749.3,1.61801002]
[1643784785820,1.21061684,2749.9,2749.3,1.61801002]
[1643784787219,1.24899809,2749.9,2749.3,1.61801002]
[1643784788559,1.21061684,2749.9,2749.3,1.61801002]
[1643784791067,0.3,2749.9,2749.3,1.61801002]
[1643784791313,1.2092899,2750.0,2749.3,1.61801002]
[1643784791512,1.2092899,2750.0,2749.3,1.79971002]
[1643784792414,0.72545263,2749.9,2749.3,1.79971002]
[1643784792816,1.02545263,2749.9,2749.3,1.79971002]
[1643784793616,1.02545263,2749.9,2749.3,1.61801002]
[1643784794517,1.53536228,2749.8,2749.3,1.61801002]
[1643784794954,1.53536228,2749.8,2749.3,0.44791002]
[1643784800915,2.44466648,2749.8,2749.3,0.44791002]
[1643784801115,0.9093042,2749.8,2749.3,0.44791002]
[1643784802668,0.22057712,2750.3,2749.3,2.60000171]
[1643784802874,3.18699442,2750.5,2749.4,1.7057]
[1643784802875,0.1817,2750.4,2749.4,1.7057]
[1643784803063,1.2090847,2750.5,2749.4,1.7057]
[1643784803267,1.24634753,2750.5,2749.4,0.7057]
[1643784803664,1.24634753,2750.5,2750.0,0.31935867]
[1643784803865,0.67198346,2750.4,2749.8,0.39878509]
[1643784804264,1.24634753,2750.5,2749.8,0.39878509]
[1643784805266,1.24890651,2750.5,2749.8,0.39878509]
[1643784805869,0.89992727,2750.4,2749.8,0.39878509]
[1643784806524,1.24890651,2750.5,2749.8,0.39878509]
[1643784806725,11.3584,2750.6,2749.8,2.53872336]
[1643784806726,7.6517,2750.6,2749.8,2.53872336]
[1643784806937,7.6517,2750.6,2749.9,0.7057]
[1643784806938,7.47,2750.6,2749.9,0.7057]
[1643784807122,7.47,2750.6,2749.9,1.7057]
[1643784807325,7.47,2750.6,2750.0,2.05411022]
[1643784807522,0.21899504,2751.2,2750.1,0.88763]
[1643784807725,0.01271516,2751.3,2750.9,0.80490827]
[1643784807726,0.1817,2751.3,2750.9,0.80490827]
[1643784808922,1.0904902,2751.3,2751.0,0.32268292]
[1643784809122,1.12910875,2751.3,2751.0,0.32268292]
[1643784809323,1.24740875,2751.3,2751.0,0.32268292]
[1643784809523,1.24740875,2751.3,2750.6,1.2274]
[1643784809728,1.9242764,2751.3,2750.6,1.2274]
[1643784809992,0.67686765,2751.0,2750.3,0.1817]
[1643784810182,0.67686765,2751.0,2750.2,1.1588]
[1643784810380,0.1817,2750.9,2750.2,1.1588]
[1643784810579,0.1817,2750.9,2750.8,0.35029566]
[1643784810789,1.0907332,2750.9,2750.8,0.35029566]
[1643784810983,1.1241139,2750.9,2750.8,0.35029566]
[1643784811786,0.33555938,2751.0,2750.8,0.35029566]
[1643784811987,0.3,2751.1,2750.8,0.35029566]
[1643784812386,1.23999576,2751.2,2750.9,0.94925602]
[1643784812587,1.23999576,2751.2,2750.8,0.35029566]
[1643784814410,1.53593992,2751.1,2750.8,0.35029566]
[1643784817468,1.53593992,2751.1,2750.3,0.1817]
[1643784817665,0.92007959,2750.9,2750.3,0.1817]
[1643784817867,1.53593992,2750.8,2750.3,0.1817]
[1643784818470,1.53593992,2750.8,2750.5,0.34131212]
[1643784819065,1.53593992,2750.8,2750.3,0.1817]
[1643784819272,0.9089979,2750.7,2750.3,0.1817]
[1643784819466,1.53593992,2750.6,2750.2,1.1588]
[1643784819869,1.83593992,2750.6,2750.2,1.1588]
[1643784820067,1.53593992,2750.5,2750.4,0.37521064]
[1643784820666,0.33823986,2750.6,2750.4,0.37521064]
[1643784820872,0.3,2750.6,2750.2,1.1588]
[1643784821076,1.53609535,2750.5,2750.2,1.1588]
[1643784821320,1.83609535,2750.5,2750.2,1.1588]
[1643784821517,2.44521255,2750.4,2750.1,0.1817]
[1643784821717,1.53609535,2750.3,2749.8,0.1817]
[1643784822116,1.83609535,2750.3,2749.8,0.1817]
[1643784822318,1.53622638,2750.2,2749.8,0.1817]
[1643784822519,1.2091172,2750.4,2750.0,0.39221927]
[1643784822824,2.1572112,2750.4,2749.8,0.69733694]
[1643784823019,1.5362136,2750.3,2749.7,0.1817]
[1643784823220,1.5362136,2750.3,2749.6,1.244]
[1643784823221,0.9092235,2750.2,2749.6,1.244]
[1643784823421,0.94789853,2750.2,2749.6,1.244]
[1643784823624,1.24789853,2750.2,2749.6,1.244]
[1643784824018,1.14789853,2750.2,2750.0,0.37015827]
[1643784827372,1.14789853,2750.2,2749.6,1.244]
[1643784828372,1.14789853,2750.2,2749.6,2.03619429]
[1643784828573,1.53627298,2750.1,2749.6,2.03619429]
[1643784828827,0.94256833,2750.0,2749.6,2.03619429]
[1643784829020,0.94256833,2750.0,2749.6,0.79219429]
[1643784829217,1.24256833,2750.0,2749.6,0.79219429]
[1643784829818,0.33331373,2750.0,2749.6,0.79219429]
[1643784830017,0.33331373,2750.0,2749.7,0.34979231]
[1643784830218,0.3,2750.0,2749.7,0.34979231]
[1643784830619,2.33506298,2750.3,2749.7,0.34979231]
[1643784830818,1.53623774,2750.2,2749.7,0.34979231]
[1643784832022,2.44541804,2750.2,2749.7,0.34979231]
[1643784832225,1.53623774,2750.1,2749.7,0.34979231]
[1643784832462,1.86777725,2750.1,2749.7,0.34979231]
[1643784832660,1.57437941,2750.0,2749.7,0.34979231]
[1643784832861,0.03685404,2750.1,2749.7,0.34979231]
[1643784833063,1.53629309,2750.0,2749.7,0.34979231]
[1643784833261,0.33802791,2750.0,2749.7,0.34979231]
[1643784833465,0.33802791,2750.0,2749.6,0.79219429]
[1643784833665,0.33802791,2750.0,2749.9,0.00229973]
[1643784834066,1.24725821,2750.0,2749.9,0.00229973]
[1643784834462,2.78355221,2750.0,2749.9,0.00229973]
[1643784834664,1.24725821,2750.0,2749.9,0.00229973]
[1643784835064,1.24725821,2750.0,2749.5,3.7371]
[1643784835065,2.78355145,2750.0,2749.5,3.7371]
[1643784835265,1.24725821,2750.0,2749.5,3.7371]
[1643784835665,1.53631894,2749.9,2749.4,1.2288]
[1643784835864,2.44553844,2749.9,2749.7,0.34456061]
[1643784836066,1.24004103,2749.9,2749.7,0.34456061]
[1643784836524,1.24004103,2749.9,2749.7,0.24456061]
[1643784836728,1.24004103,2749.9,2749.4,1.2288]
[1643784836926,1.24004103,2749.9,2749.2,3.9038]
[1643784837131,0.9093611,2749.6,2749.0,0.31989997]
[1643784837526,0.3,2749.5,2749.0,0.31989997]
[1643784837927,0.33334941,2749.5,2749.0,0.31989997]
[1643784838130,0.33334941,2749.5,2749.4,0.38560893]
[1643784838336,0.33334941,2749.5,2748.3,3.63721]
[1643784838337,1.3333494,2749.5,2748.3,3.63721]
[1643784838545,1.3333494,2749.5,2748.5,0.1818]
[1643784838546,0.01247297,2748.6,2748.5,0.1818]
[1643784838828,0.01043048,2748.6,2748.2,0.18193]
[1643784839031,0.01043048,2748.6,2747.6,3.7359]
[1643784839032,0.20227746,2749.3,2748.3,0.1819]
[1643784839236,1.53685562,2749.2,2747.7,0.1819]
[1643784839424,1.83685562,2749.2,2747.7,0.1819]
[1643784839627,1.55345655,2749.1,2747.7,0.1819]
[1643784839969,1.55345655,2749.1,2748.5,0.39977513]
[1643784839970,0.23331658,2749.1,2748.5,0.39977513]
[1643784840175,0.3,2749.0,2748.5,0.39977513]
[1643784840373,0.4817,2749.2,2748.5,0.39977513]
[1643784840573,0.3,2749.0,2748.5,0.39977513]
[1643784840771,0.33719003,2749.2,2748.5,0.39977513]
[1643784840970,0.33719003,2749.2,2748.4,0.79734367]
[1643784841176,0.79397628,2748.9,2748.4,0.79734367]
[1643784841375,1.09397628,2748.9,2748.1,0.1817]
[1643784841582,0.9096226,2748.7,2748.1,0.1817]
[1643784841784,1.24320745,2748.7,2748.1,0.1817]
[1643784842174,1.24127733,2748.7,2748.1,0.1817]
[1643784842778,1.53702665,2748.6,2748.1,0.1817]
[1643784842981,0.01098352,2748.6,2747.9,0.35306428]
[1643784843281,1.42317733,2748.7,2747.9,0.35306428]
[1643784843282,1.24127733,2748.7,2747.9,0.35306428]
[1643784843583,2.57811022,2749.1,2747.9,0.35306428]
[1643784843584,0.1819,2749.0,2747.9,0.35306428]
[1643784843820,0.1819,2749.0,2748.6,0.77348695]
[1643784843821,0.3,2749.0,2748.6,0.77348695]
[1643784844020,1.28515037,2749.2,2748.6,0.77348695]
[1643784844425,1.28515037,2749.2,2748.6,0.42310172]
[1643784846625,0.57639994,2749.2,2748.6,0.42310172]
[1643784846825,0.1817,2749.3,2748.6,0.42310172]
[1643784847033,0.4817,2749.3,2748.6,0.42310172]
[1643784847225,0.1817,2749.3,2748.6,0.42310172]
[1643784847673,0.81097164,2749.4,2748.7,0.1817]
[1643784847874,1.11097164,2749.4,2748.7,1.4054]
[1643784848276,0.4817,2749.7,2748.8,0.3]
[1643784848672,0.3,2749.7,2748.8,0.3]
[1643784848878,0.1817,2749.8,2748.7,2.4054]
[1643784849582,0.92782632,2749.6,2749.2,0.32961136]
[1643784849776,1.22782632,2749.6,2748.8,1.3]
[1643784849983,3.60153845,2749.5,2748.7,2.4054]
[1643784850179,3.60153845,2749.5,2748.7,1.2237]
[1643784850180,1.53659555,2749.4,2748.7,1.2237]
[1643784850377,1.83659555,2749.4,2748.7,1.2237]
[1643784850576,1.53659555,2749.3,2748.7,1.2237]
[1643784850783,1.83659555,2749.3,2748.7,1.2237]
[1643784851079,0.33472823,2749.3,2748.7,1.2237]
[1643784851321,0.3,2749.2,2748.7,1.2237]
[1643784851524,0.51745136,2749.5,2748.7,1.2237]
[1643784851525,0.33575136,2749.5,2748.7,1.2237]
[1643784851821,2.01837122,2749.4,2748.7,1.2237]
[1643784852023,0.517438,2749.4,2748.7,1.2237]
[1643784852229,0.217438,2749.4,2748.7,1.2237]
[1643784852424,0.73717436,2749.2,2748.7,1.2237]
[1643784852826,1.03717436,2749.2,2748.7,1.2237]
[1643784854226,0.33918378,2749.2,2748.7,1.2237]
[1643784854729,0.33964502,2749.4,2748.7,1.2237]
[1643784854962,0.52134502,2749.4,2748.7,1.2237]
[1643784855172,0.52134502,2749.4,2749.0,0.32214077]
[1643784855766,0.4817,2749.4,2749.0,0.32214077]
[1643784855963,0.3,2749.4,2749.0,0.32214077]
[1643784856163,0.1817,2749.7,2749.0,0.32214077]
[1643784856369,0.51964513,2749.7,2749.5,0.41531262]
[1643784856667,0.83062524,2749.4,2749.2,0.7839853]
[1643784856867,0.83062524,2749.4,2749.3,0.32407005]
[1643784857276,0.83062524,2749.4,2748.8,0.3]
[1643784857770,1.13062524,2749.4,2748.8,0.3]
[1643784858167,0.77313191,2749.3,2748.9,0.39542091]
[1643784858568,1.13062524,2749.4,2748.9,0.39542091]
[1643784860817,1.13062524,2749.4,2749.0,0.1817]
[1643784861216,0.83062524,2749.4,2749.0,0.1817]
[1643784862875,0.83062524,2749.4,2749.1,0.524]
[1643784863671,0.83062524,2749.4,2749.2,0.00226874]
[1643784864673,0.81230601,2749.4,2749.2,0.00226874]
[1643784865871,0.76230601,2749.4,2749.2,0.00226874]
[1643784868718,0.76230601,2749.4,2749.0,0.18193]
[1643784872777,0.76230601,2749.4,2748.9,0.39542091]
[1643784872975,1.06230601,2749.4,2748.9,0.39542091]
[1643784873472,1.06230601,2749.4,2748.9,0.92904038]
[1643784873716,1.06230601,2749.4,2749.2,0.00226874]
[1643784875517,1.06230601,2749.4,2749.3,0.11742371]
[1643784876820,0.76230601,2749.4,2749.3,0.11742371]
[1643784877021,1.06230601,2749.4,2749.3,0.11742371]
[1643784878073,0.76230601,2749.4,2749.3,0.11742371]
[1643784878665,0.76230601,2749.4,2749.3,0.64142371]
[1643784879568,6.01e-06,2749.4,2749.3,0.82312371]
[1643784879768,0.1817,2750.5,2749.3,4.47307615]
[1643784879975,5.0179,2750.7,2749.4,1.3627]
[1643784880171,1.53600717,2750.6,2749.6,0.90891]
[1643784880373,4.8362,2750.7,2749.8,0.90885]
[1643784880568,1.53599672,2750.6,2750.5,0.33472971]
[1643784880774,1.53599672,2750.6,2749.9,0.1817]
[1643784880775,7.7610493,2750.5,2749.9,0.1817]
[1643784880976,0.01237911,2750.0,2749.7,0.11742371]
[1643784881235,0.1817,2750.5,2749.7,0.11742371]
[1643784881435,1.53612506,2750.4,2749.7,0.11742371]
[1643784881635,1.53612506,2750.3,2749.7,0.11742371]
[1643784882038,0.4817,2750.5,2749.7,0.11742371]
[1643784882039,1.53612506,2750.2,2749.7,0.11742371]
[1643784882234,1.53612506,2750.1,2749.7,0.11742371]
[1643784882534,0.0300691,2750.3,2749.7,0.11742371]
[1643784882535,0.1817,2750.2,2749.7,0.11742371]
[1643784882735,1.53631319,2750.1,2749.7,0.11742371]
[1643784883140,0.69260807,2749.8,2749.7,0.11742371]
[1643784883938,0.5133785,2750.2,2749.6,0.11742371]
[1643784884135,1.53628227,2750.1,2749.6,0.11742371]
[1643784884337,0.1817,2750.0,2749.6,0.11742371]
[1643784884735,0.1817,2750.1,2749.6,0.11742371]
[1643784884973,1.57161008,2750.0,2749.6,0.11742371]
[1643784885169,1.71798539,2749.9,2749.6,0.11742371]
[1643784885378,1.71798539,2749.9,2748.9,0.1817]
[1643784885379,6.85,2749.7,2748.9,0.1817]
[1643784885580,0.01289066,2749.4,2748.5,0.7005355]
[1643784885771,0.01289066,2749.4,2748.5,0.5188355]
[1643784885772,1.53628539,2749.3,2748.5,0.5188355]
[1643784885969,0.87988811,2748.9,2748.5,0.5188355]
[1643784886372,1.17988811,2748.9,2748.5,0.5188355]
[1643784886575,1.21948694,2748.9,2748.5,0.5188355]
[1643784887174,2.12915834,2748.9,2748.5,0.5188355]
[1643784887576,0.9096714,2748.9,2748.5,0.5188355]
[1643784887778,0.01101588,2749.3,2748.5,0.5188355]
[1643784887779,0.1819,2749.2,2748.5,0.5188355]
[1643784887978,0.1817,2749.5,2748.5,0.5188355]
[1643784888182,1.53663448,2749.4,2748.5,0.5188355]
[1643784888375,1.83663448,2749.4,2748.5,0.5188355]
[1643784888579,0.3,2749.4,2748.5,1.0428355]
[1643784888818,0.1817,2749.5,2749.0,0.44973385]
[1643784889019,0.70882476,2749.2,2749.0,0.44973385]
[1643784889223,1.00882476,2749.2,2749.0,0.44973385]
[1643784889619,0.3,2749.2,2749.0,0.44973385]
[1643784889921,1.8187928,2749.7,2749.0,0.44973385]
[1643784889922,0.3,2749.7,2749.0,0.44973385]
[1643784890120,0.03072897,2750.0,2749.0,0.44973385]
[1643784890318,1.53636238,2749.9,2749.1,0.1817]
[1643784890826,0.89883613,2749.7,2749.6,0.32514998]
[1643784891020,0.89883613,2749.7,2749.1,0.88478278]
[1643784891221,0.89883613,2749.7,2749.1,1.09089]
[1643784891623,0.89883613,2749.7,2749.1,0.4817]
[1643784891825,1.19883613,2749.7,2749.1,0.1817]
[1643784892124,1.19883613,2749.7,2749.6,0.4214361]
[1643784892580,0.3,2749.7,2749.6,0.4214361]
[1643784892780,1.2092514,2749.9,2749.6,0.4214361]
[1643784892980,0.3,2749.9,2749.6,0.4214361]
[1643784893385,0.4817,2750.1,2749.6,0.4214361]
[1643784893582,0.3,2750.1,2749.6,0.4214361]
[1643784893781,0.73341555,2750.1,2749.6,0.4214361]
[1643784893981,1.53630272,2750.0,2749.3,0.7057]
[1643784894183,1.83630272,2750.0,2749.3,0.7057]
[1643784894383,1.53630272,2749.9,2749.2,0.1817]
[1643784894783,1.83630272,2749.9,2749.2,0.1817]
[1643784894983,0.3,2749.9,2749.8,0.37719346]
[1643784895182,0.3,2749.9,2749.2,0.1817]
[1643784895183,0.3,2749.9,2749.3,0.94436079]
[1643784895382,1.2091926,2750.0,2749.2,0.7057]
[1643784895584,1.53637175,2749.9,2749.2,0.7057]
[1643784895785,1.83637175,2749.9,2749.2,0.7057]
[1643784896091,0.3,2749.9,2749.2,0.7057]
[1643784896322,1.53636912,2749.8,2749.5,0.37264628]
[1643784896524,0.3,2749.8,2749.5,0.37264628]
[1643784896822,2.88736819,2750.1,2749.5,0.37264628]
[1643784897024,0.70261024,2749.6,2749.2,0.7057]
[1643784897225,1.00261024,2749.6,2749.2,0.7057]
[1643784897423,1.00261024,2749.6,2749.2,0.1817]
[1643784898129,1.00261024,2749.6,2749.5,0.42126291]
[1643784898333,2.53911348,2749.6,2749.5,0.42126291]
[1643784898527,2.53911348,2749.6,2749.2,0.1817]
[1643784898730,1.00261024,2749.6,2748.9,1.00142544]
[1643784898926,1.03614064,2749.6,2748.9,1.00142544]
[1643784899527,2.44594519,2749.5,2748.9,1.00142544]
[1643784899726,1.83656907,2749.4,2749.0,0.35674112]
[1643784899970,0.33342385,2749.4,2749.0,0.35674112]
[1643784901577,0.82136307,2749.1,2748.6,0.1817]
[1643784901786,1.12136307,2749.1,2748.6,0.1817]
[1643784902178,0.3,2749.1,2748.6,0.1817]
[1643784902681,1.53685613,2749.0,2748.6,0.1817]
[1643784902878,0.3,2749.0,2748.6,0.1817]
[1643784903078,0.33778065,2749.0,2748.6,0.1817]
[1643784903278,0.77240837,2748.9,2748.6,0.1817]
[1643784903951,0.77240837,2748.9,2748.7,0.40880039]
[1643784904345,0.3,2749.0,2748.7,0.40880039]
[1643784904545,0.9095771,2748.9,2748.7,0.40880039]
[1643784904747,0.3,2749.1,2748.7,0.40880039]
[1643784904946,0.33679738,2749.1,2748.7,0.40880039]
[1643784905146,0.03679738,2749.1,2748.7,0.40880039]
[1643784905445,0.3,2749.0,2748.7,0.40880039]
[1643784905845,1.06192305,2749.1,2748.7,0.40880039]
[1643784906047,1.09997838,2749.1,2748.7,0.40880039]
[1643784906246,1.39997838,2749.1,2748.5,0.5188355]
[1643784906458,3.68608425,2749.0,2748.5,0.5188355]
[1643784906650,0.1819,2748.9,2748.5,0.5188355]
[1643784906849,0.21771612,2749.0,2748.5,0.5188355]
[1643784907051,0.1819,2749.0,2748.5,0.5188355]
[1643784907251,0.1819,2749.0,2748.8,0.38443064]
[1643784908087,1.0914878,2749.0,2748.8,0.38443064]
[1643784908285,0.3,2748.9,2748.8,0.38443064]
[1643784908587,1.8192816,2749.2,2748.8,0.38443064]
[1643784908588,0.1817,2749.1,2748.8,0.38443064]
[1643784908787,0.03980885,2749.4,2748.9,0.0022795]
[1643784909094,0.1817,2749.5,2748.9,0.0022795]
[1643784909095,1.0911198,2749.5,2748.9,0.0022795]
[1643784909291,1.0307315,2749.5,2749.0,0.78298317]
[1643784909489,0.8490315,2749.5,2749.4,0.40104934]
[1643784909688,0.8490315,2749.5,2748.9,0.5262795]
[1643784910288,0.8490315,2749.5,2748.9,0.0022795]
[1643784910492,1.1490315,2749.5,2748.9,0.0022795]
[1643784910700,1.1867468,2749.5,2748.9,0.0022795]
[1643784910891,0.1817,2749.4,2749.0,0.42082259]
[1643784913134,2.0961869,2749.5,2749.0,0.42082259]
[1643784913732,1.1490315,2749.5,2749.2,0.00226874]
[1643784913932,0.3,2749.5,2749.2,0.00226874]
[1643784914338,0.3,2749.7,2749.2,0.00226874]
[1643784914531,8.71303408,2749.9,2749.2,0.00226874]
[1643784914987,0.74154049,2749.8,2749.2,0.91510493]
[1643784915185,0.74154049,2749.8,2749.2,0.00226874]
[1643784916192,1.04154049,2749.8,2749.7,0.35419144]
[1643784916392,1.04154049,2749.8,2749.3,0.81824927]
[1643784916591,1.04154049,2749.8,2749.2,0.00226874]
[1643784917393,1.04154049,2749.8,2749.5,0.37082648]
[1643784918498,0.3,2749.8,2749.5,0.37082648]
[1643784918723,7.47,2749.9,2749.5,0.37082648]
[1643784918724,7.77,2749.9,2749.5,0.37082648]
[1643784921231,7.77,2749.9,2749.1,0.92763597]
[1643784921434,7.77,2749.9,2749.1,0.1817]
[1643784921732,9.86626703,2749.9,2749.1,0.1817]
[1643784921931,10.77557773,2749.9,2749.1,0.1817]
[1643784922332,10.77557773,2749.9,2749.2,0.42516007]
[1643784922583,0.1817,2749.8,2749.2,0.42516007]
[1643784924086,7.80068451,2749.9,2749.2,0.42516007]
[1643784924087,7.98238451,2749.9,2749.2,0.42516007]
[1643784924286,0.73078997,2749.5,2749.2,0.42516007]
[1643784924488,0.73078997,2749.5,2749.0,1.1513]
[1643784925688,0.73078997,2749.5,2749.2,0.39193903]
[1643784925889,0.1817,2749.8,2749.2,0.39193903]
[1643784927032,0.77620387,2749.5,2749.0,1.1513]
[1643784928435,0.77620387,2749.5,2749.3,0.4403024]
[1643784929334,8.6792974,2749.9,2749.3,0.4403024]
[1643784929536,1.53648573,2749.8,2749.3,0.4403024]
[1643784930380,0.83221548,2749.5,2749.3,0.4403024]
[1643784930579,1.53659126,2749.4,2749.0,1.1513]
[1643784931079,1.13221548,2749.5,2748.9,1.09099]
[1643784931485,1.13221548,2749.5,2749.0,0.4226243]
[1643784931684,1.53658216,2749.4,2749.0,0.4226243]
[1643784932583,1.13221548,2749.5,2749.0,0.4226243]
[1643784933084,1.53658407,2749.4,2749.0,0.4226243]
[1643784933486,0.3,2749.5,2749.0,0.4226243]
[1643784933729,1.2435051,2749.7,2749.2,0.00226874]
[1643784933928,1.53654445,2749.6,2749.2,0.00226874]
[1643784938612,1.53654445,2749.6,2748.8,1.1817]
[1643784938812,1.53654445,2749.6,2748.8,1.4817]
[1643784939016,2.0579606,2749.7,2748.8,1.4817]
[1643784940016,0.70912941,2749.2,2748.8,1.4817]
[1643784940416,0.70912941,2749.2,2749.0,0.41024008]
[1643784941241,1.00912941,2749.2,2748.8,0.1817]
[1643784941442,1.00912941,2749.2,2748.5,1.05346843]
[1643784941443,1.00912941,2749.2,2748.6,0.1817]
[1643784942756,0.70912941,2749.2,2748.9,0.32768978]